bitfinex/quotes_SOLUSD_20240717
["timestamp","ask_amount","ask_price","bid_price","bid_amount"]
[1721206091195,6.1535,162.51,162.47,6.1549]
[1721206091419,1.53822217,162.55,162.48,1.23057774]
[1721206091617,6.1535,162.51,162.49,1.23057411]
[1721206091827,30.7508,162.6,162.49,1.23057411]
[1721206091828,6.146,162.71,162.66,6.1476]
[1721206092117,16.2052,162.72,162.67,1.22932822]
[1721206092319,16.2052,162.72,162.67,15.3678]
[1721206092522,16.2052,162.72,162.67,21.5149]
[1721206092733,16.2052,162.72,162.69,6.1466]
[1721206093021,1.53642942,162.76,162.64,10.0]
[1721206093191,6.1452,162.73,162.68,15.3668]
[1721206093606,6.1459,162.71,162.65,21.5183]
[1721206093817,6.1454,162.73,162.66,6.1475]
[1721206094021,1.53656317,162.75,162.65,15.3703]
[1721206094202,6.1451,162.73,162.65,15.3703]
[1721206094401,6.1455,162.72,162.66,6.1474]
[1721206094640,6.1449,162.74,162.67,15.3677]
[1721206094803,1.53646357,162.73,162.67,15.3677]
[1721206094999,6.1449,162.74,162.68,7.37616965]
[1721206095209,6.1445,162.75,162.69,6.1466]
[1721206095613,6.1449,162.74,162.67,21.5147]
[1721206095822,6.1444,162.75,162.69,6.1463]
[1721206096025,1.53625314,162.74,162.67,15.3677]
[1721206096324,21.53638444,162.77,162.67,21.515]
[1721206096623,6.1451,162.73,162.67,21.515]
[1721206096933,6.1445,162.75,162.7,15.3655]
[1721206097298,6.1445,162.75,162.7,21.5117]
[1721206097494,7.68041477,162.76,162.71,6.1456]
[1721206097806,6.144,162.76,162.71,6.1456]
[1721206098003,6.1444,162.75,162.7,15.3655]
[1721206098418,6.1444,162.75,162.7,21.5117]
[1721206098617,6.1447,162.74,162.7,15.3655]
[1721206098840,6.1444,162.75,162.7,21.5117]
[1721206099437,6.1447,162.74,162.7,21.5117]
[1721206099830,1.53648588,162.73,162.67,21.5156]
[1721206100020,6.1459,162.71,162.67,15.3683]
[1721206100215,1.53656313,162.76,162.68,1.22924276]
[1721206100523,6.1444,162.75,162.7,6.1462]
[1721206101244,6.362,162.78,162.7,0.57158666]
[1721206101245,6.1448,162.74,162.7,0.57158666]
[1721206101433,1.53635782,162.77,162.7,0.5771354]
[1721206101633,6.1446,162.75,162.7,6.7230354]
[1721206101938,6.1448,162.74,162.69,6.1462]
[1721206102162,6.1444,162.75,162.7,6.1462]
[1721206102766,7.68030284,162.76,162.71,7.37468541]
[1721206103056,6.1444,162.75,162.7,6.1461]
[1721206103233,6.1444,162.75,162.71,6.1458]
[1721206103625,6.144,162.76,162.71,6.1458]
[1721206103854,21.721,162.78,162.68,15.3671]
[1721206104062,6.1457,162.72,162.68,15.3671]
[1721206104229,6.1457,162.72,162.67,6.147]
[1721206104544,6.1451,162.73,162.68,1.22923378]
[1721206104730,1.53648987,162.72,162.67,21.5152]
[1721206104932,1.53664231,162.71,162.67,21.5152]
[1721206105149,0.34,162.77,162.69,6.1465]
[1721206105358,1.53652356,162.76,162.69,6.1465]
[1721206105529,1.53652356,162.76,162.7,6.1461]
[1721206105843,6.1444,162.75,162.7,7.37480939]
[1721206106046,6.1452,162.73,162.67,6.147]
[1721206106219,1.53661395,162.72,162.66,15.369]
[1721206106428,21.53667361,162.77,162.66,15.369]
[1721206106733,1.87670569,162.76,162.66,15.369]
[1721206107048,6.1459,162.71,162.66,21.5166]
[1721206107224,6.1456,162.72,162.67,6.1472]
[1721206107424,1.53666705,162.71,162.67,6.1472]
[1721206107829,1.53666705,162.71,162.66,21.5167]
[1721206108027,6.1463,162.7,162.66,15.369]
[1721206108445,6.1459,162.71,162.66,21.5167]
[1721206108747,1.53670614,162.7,162.66,21.5167]
[1721206109156,6.1459,162.71,162.67,6.1473]
[1721206109448,1.53668097,162.7,162.66,21.5166]
[1721206110231,1.53668097,162.7,162.66,21.5167]
[1721206110232,7.68298097,162.7,162.66,21.5167]
[1721206110433,6.1463,162.7,162.66,21.5167]
[1721206110828,1.53677102,162.74,162.66,21.5167]
[1721206110829,6.146,162.71,162.66,21.5167]
[1721206111045,6.146,162.71,162.67,6.63807833]
[1721206111349,6.146,162.71,162.66,21.5167]
[1721206111524,6.146,162.71,162.67,0.4906275]
[1721206112346,6.146,162.71,162.67,6.6379275]
[1721206112546,7.68133842,162.74,162.7,6.1461]
[1721206112754,1.5363866,162.76,162.69,6.1465]
[1721206112939,6.145,162.74,162.69,6.1465]
[1721206113144,1.5364549,162.74,162.69,6.1465]
[1721206113327,1.53641063,162.77,162.72,6.1455]
[1721206113531,1.53628173,162.76,162.72,6.1455]
[1721206113750,7.68028173,162.76,162.71,7.37434771]
[1721206114060,7.68028173,162.76,162.71,6.1457]
[1721206114557,7.68076205,162.75,162.7,21.5113]
[1721206114857,6.1445,162.75,162.7,21.5113]
[1721206115271,6.1445,162.75,162.71,6.1458]
[1721206115432,1.53626464,162.77,162.72,6.1454]
[1721206115752,1.53620803,162.76,162.72,6.1454]
[1721206116149,7.68020803,162.76,162.72,6.1454]
[1721206116556,6.144,162.76,162.71,6.1457]
[1721206116853,7.68020826,162.76,162.71,6.1457]
[1721206117230,7.67990838,162.77,162.72,15.3634]
[1721206117454,1.53603579,162.79,162.73,1.22881582]
[1721206117643,1.53603579,162.79,162.74,16.58971819]
[1721206117836,1.53603579,162.79,162.75,1.22872299]
[1721206118038,1.53603579,162.79,162.76,6.1439]
[1721206118762,7.67893579,162.79,162.75,6.1443]
[1721206119065,1.53603579,162.79,162.75,7.37281825]
[1721206119259,1.53603579,162.79,162.76,6.1439]
[1721206120334,1.53584809,162.79,162.76,6.1439]
[1721206120669,6.1433,162.78,162.74,21.5056]
[1721206120839,6.1433,162.78,162.74,15.361]
[1721206121038,6.1433,162.78,162.74,21.5057]
[1721206121365,7.67874809,162.79,162.74,21.5057]
[1721206121662,6.1441,162.76,162.72,6.1452]
[1721206121844,6.1435,162.78,162.73,1.22887035]
[1721206122047,1.53584809,162.79,162.74,7.37328022]
[1721206122048,7.67884809,162.79,162.74,7.37328022]
[1721206122252,1.53584809,162.79,162.73,15.3622]
[1721206122554,1.53584809,162.79,162.74,1.22879483]
[1721206122753,1.53584809,162.79,162.7,15.3652]
[1721206122954,6.1443,162.76,162.71,6.1456]
[1721206123337,1.53609036,162.75,162.7,21.5113]
[1721206123548,1.53621218,162.79,162.67,15.3682]
[1721206123766,15.3604,162.76,162.67,15.3682]
[1721206123962,22.7235,162.74,162.64,15.3707]
[1721206124165,22.7235,162.74,162.63,6.1489]
[1721206124166,6.1474,162.67,162.63,6.1489]
[1721206124373,6.1475,162.67,162.63,6.1488]
[1721206124692,6.1475,162.67,162.62,6.1491]
[1721206124840,6.1488,162.64,162.6,6.15]
[1721206125047,6.1482,162.65,162.57,0.45706953]
[1721206125357,6.1482,162.65,162.59,15.3753]
[1721206125558,6.1482,162.65,162.61,6.1496]
[1721206125740,6.1478,162.66,162.62,0.48116924]
[1721206126242,6.1478,162.66,162.62,1.22972584]
[1721206126443,6.1481,162.65,162.62,1.22972584]
[1721206127060,6.1481,162.65,162.6,6.1499]
[1721206127651,7.68576085,162.64,162.59,15.3753]
[1721206127863,6.1481,162.65,162.61,6.1493]
[1721206128167,6.1481,162.65,162.52,51.1559866]
[1721206128168,16.62988984,162.64,162.56,15.3786]
[1721206128348,6.1496,162.61,162.56,15.3786]
[1721206128567,1.53731942,162.63,162.56,15.3786]
[1721206128793,1.53731942,162.63,162.57,1.23000526]
[1721206128990,7.68651942,162.63,162.58,1.22993676]
[1721206129187,7.68651942,162.63,162.58,7.38053676]
[1721206129387,15.0927,162.64,162.6,6.15]
[1721206129570,21.2413,162.64,162.61,1.22979335]
[1721206129773,15.0927,162.64,162.61,22.75229335]
[1721206129977,15.0927,162.64,162.58,15.3767]
[1721206130178,15.0927,162.64,162.59,1.22978049]
[1721206130391,15.0927,162.64,162.6,6.15]
[1721206130570,15.0927,162.64,162.58,15.3767]
[1721206130571,15.0927,162.64,162.61,1.22973544]
[1721206130772,21.2415,162.64,162.61,1.22973544]
[1721206131004,15.0927,162.64,162.61,1.22973544]
[1721206131870,21.2412,162.64,162.61,1.22973544]
[1721206132176,15.0927,162.64,162.59,1.22971435]
[1721206132371,15.0927,162.64,162.55,21.5315]
[1721206132572,6.149,162.63,162.58,6.1507]
[1721206132886,6.1494,162.62,162.57,21.5285]
[1721206133400,6.1494,162.62,162.58,1.22986092]
[1721206133787,6.1494,162.62,162.58,7.38056092]
[1721206134105,6.1494,162.62,162.57,21.5284]
[1721206134997,6.1494,162.62,162.57,6.1511]
[1721206134998,6.1495,162.62,162.57,6.1511]
[1721206135200,6.1495,162.62,162.58,1.22999433]
[1721206135410,15.0927,162.64,162.58,7.38059433]
[1721206135693,21.2413,162.64,162.6,6.15]
[1721206136078,15.0927,162.64,162.61,7.37942007]
[1721206136513,15.0927,162.64,162.6,15.3746]
[1721206136514,6.1489,162.63,162.6,15.3746]
[1721206136698,6.1489,162.63,162.59,6.1504]
[1721206137004,15.0927,162.64,162.6,7.37973801]
[1721206137191,1.53727509,162.67,162.61,7.37911564]
[1721206137394,1.53727509,162.67,162.61,1.22971564]
[1721206137708,6.149,162.63,162.61,1.22971564]
[1721206137907,6.1493,162.62,162.59,1.22974066]
[1721206138207,6.1489,162.63,162.59,1.22974066]
[1721206138385,16.90637509,162.67,162.59,1.22983212]
[1721206138580,16.90637509,162.67,162.56,15.3787]
[1721206138779,6.1491,162.63,162.58,6.1507]
[1721206139198,1.5372827,162.62,162.56,21.5302]
[1721206139394,1.53744148,162.67,162.58,16.60642616]
[1721206139720,21.53744148,162.67,162.55,15.3793]
[1721206139907,21.53744148,162.67,162.56,45.0]
[1721206140279,6.1489,162.63,162.58,6.1505]
[1721206140501,6.1489,162.63,162.59,7.38024585]
[1721206140896,6.1494,162.62,162.59,1.22984585]
[1721206141092,6.1494,162.62,162.57,21.5286]
[1721206141292,6.1497,162.61,162.57,15.3775]
[1721206141507,6.1497,162.61,162.58,1.22989519]
[1721206141703,6.1497,162.61,162.59,1.17216324]
[1721206141885,6.1509,162.58,162.54,15.3803]
[1721206142204,1.53736593,162.6,162.54,21.5325]
[1721206142205,6.1505,162.59,162.54,21.5325]
[1721206142396,6.1504,162.6,162.54,15.3803]
[1721206142582,6.1504,162.6,162.55,1.23003993]
[1721206143200,6.1504,162.6,162.56,6.1514]
[1721206143526,6.1493,162.62,162.58,6.1507]
[1721206143726,35.3689,162.67,162.57,1.2300165]
[1721206144018,6.1499,162.61,162.58,1.23001392]
[1721206144225,15.3708,162.65,162.53,15.3811]
[1721206144418,6.1504,162.59,162.55,6.1518]
[1721206144611,6.1504,162.59,162.56,1.23004073]
[1721206145407,6.1501,162.6,162.55,6.1518]
[1721206145615,1.53755041,162.62,162.55,15.3792]
[1721206145812,7.68705041,162.62,162.57,6.1509]
[1721206146021,7.68705041,162.62,162.58,7.38070415]
[1721206146215,7.68630519,162.64,162.59,6.1502]
[1721206146415,6.149,162.63,162.6,1.22986286]
[1721206146798,6.1493,162.62,162.58,6.1507]
[1721206147002,6.1493,162.62,162.57,15.3776]
[1721206147525,6.1496,162.61,162.57,21.5287]
[1721206148923,1.53750519,162.64,162.58,6.1506]
[1721206149130,7.68656647,162.63,162.58,6.1507]
[1721206149316,6.1492,162.63,162.58,6.1507]
[1721206149519,6.1493,162.62,162.58,6.1507]
[1721206149918,6.1497,162.61,162.57,15.3776]
[1721206150323,6.1493,162.62,162.57,21.5285]
[1721206150629,15.3696,162.66,162.54,6.152]
[1721206150630,6.1505,162.59,162.54,6.152]
[1721206151129,6.1505,162.59,162.55,6.1519]
[1721206151441,6.1511,162.57,162.53,15.3812]
[1721206151930,1.53784178,162.62,162.55,6.1518]
[1721206152230,21.53784178,162.62,162.56,7.38172985]
[1721206152425,6.1501,162.6,162.56,7.38172985]
[1721206153018,6.1505,162.59,162.56,1.23022985]
[1721206153210,6.1508,162.58,162.56,1.23022985]
[1721206153806,6.1505,162.59,162.56,1.23022985]
[1721206154008,6.1501,162.6,162.56,1.23022985]
[1721206154714,6.1501,162.6,162.56,7.38172985]
[1721206154913,6.151,162.58,162.52,15.3821]
[1721206155231,6.151,162.58,162.54,6.1523]
[1721206156011,6.1512,162.57,162.53,6.1526]
[1721206156206,21.53784178,162.62,162.52,15.3821]
[1721206156527,6.1504,162.59,162.55,6.1518]
[1721206157025,7.68744178,162.62,162.56,16.60852759]
[1721206157231,6.1497,162.61,162.56,16.60852759]
[1721206157434,6.1494,162.62,162.57,6.1508]
[1721206157733,6.1497,162.61,162.57,6.1508]
[1721206157907,1.53744453,162.6,162.56,15.3784]
[1721206158108,1.53764505,162.63,162.56,15.3784]
[1721206158935,6.1498,162.61,162.57,1.2301053]
[1721206159315,6.1501,162.6,162.56,21.5298]
[1721206159516,1.53764505,162.63,162.56,15.3784]
[1721206159517,6.1505,162.59,162.56,15.3784]
[1721206159747,6.15,162.61,162.56,21.5298]
[1721206159945,1.53764505,162.63,162.56,15.3784]
[1721206160321,6.1497,162.61,162.57,6.1509]
[1721206160521,6.1494,162.62,162.58,7.38020655]
[1721206161034,6.1494,162.62,162.58,1.22950655]
[1721206161214,6.1497,162.61,162.57,6.151]
[1721206161415,6.1497,162.61,162.58,1.22994082]
[1721206161749,6.1494,162.62,162.58,6.1507]
[1721206162619,6.1498,162.61,162.56,21.5298]
[1721206163339,6.1494,162.62,162.58,6.1507]
[1721206163545,6.1494,162.62,162.56,15.3784]
[1721206164113,1.53742829,162.61,162.56,15.3784]
[1721206164342,6.1509,162.58,162.53,21.5334]
[1721206164923,6.1505,162.59,162.54,7.38241398]
[1721206165135,6.1505,162.59,162.55,7.38199896]
[1721206165440,6.1509,162.58,162.55,1.23019896]
[1721206165833,6.1509,162.58,162.54,6.1522]
[1721206166044,6.1512,162.57,162.54,1.23021394]
[1721206166431,1.53779157,162.62,162.54,1.23021394]
[1721206166432,6.1508,162.58,162.55,1.23029246]
[1721206166631,6.1508,162.58,162.54,1.23026382]
[1721206166826,6.1515,162.56,162.5,15.3842]
[1721206167164,6.1515,162.56,162.52,6.153]
[1721206168746,1.53806607,162.55,162.51,6.1533]
[1721206168949,7.69006607,162.55,162.51,6.1533]
[1721206169153,6.152,162.55,162.51,6.1533]
[1721206169350,6.1515,162.57,162.52,6.153]
[1721206169537,7.68955672,162.57,162.52,1.23044537]
[1721206169737,6.1515,162.56,162.52,7.38344537]
[1721206170148,1.53805672,162.57,162.53,6.1527]
[1721206170537,6.1518,162.56,162.52,15.3823]
[1721206170743,6.1518,162.56,162.53,0.97937825]
[1721206171053,16.2147,162.59,162.55,6.1518]
[1721206171260,16.2147,162.59,162.56,1.23017675]
[1721206171564,16.2147,162.59,162.55,1.23014307]
[1721206171737,16.2147,162.59,162.55,6.1518]
[1721206172060,22.3652,162.59,162.55,6.1518]
[1721206172357,16.2147,162.59,162.56,6.1514]
[1721206172657,22.3651,162.59,162.55,6.1519]
[1721206172964,16.2147,162.59,162.56,15.3782]
[1721206173259,16.2147,162.59,162.57,6.151]
[1721206173462,16.2147,162.59,162.58,6.1508]
[1721206173832,16.2147,162.59,162.56,15.3782]
[1721206174158,16.2147,162.59,162.56,21.5296]
[1721206174340,6.1508,162.58,162.54,6.152]
[1721206174541,1.53774966,162.57,162.52,6.1527]
[1721206174758,7.68914966,162.57,162.52,6.1527]
[1721206174941,6.1519,162.56,162.51,6.1533]
[1721206175337,6.1523,162.54,162.5,21.5377]
[1721206175541,6.1519,162.55,162.51,6.1534]
[1721206175760,1.53815485,162.58,162.51,6.1534]
[1721206175941,6.1517,162.56,162.51,6.1534]
[1721206176143,7.69000156,162.55,162.51,6.1534]
[1721206176358,6.1519,162.55,162.51,6.1534]
[1721206177563,6.1519,162.55,162.51,7.38390561]
[1721206177734,6.1516,162.56,162.51,7.38390561]
[1721206177940,1.53813565,162.58,162.52,16.61230479]
[1721206178259,7.68950056,162.57,162.53,7.38278045]
[1721206179176,7.68961547,162.56,162.52,15.3818]
[1721206179350,7.69003955,162.55,162.51,6.1531]
[1721206179550,6.152,162.55,162.51,6.1531]
[1721206179751,6.1526,162.54,162.49,15.3849]
[1721206179971,6.152,162.55,162.5,6.1535]
[1721206180145,1.53816768,162.57,162.51,15.3828]
[1721206180350,1.53801173,162.58,162.51,15.3828]
[1721206180562,7.68944252,162.57,162.52,7.38316717]
[1721206181169,7.68944252,162.57,162.52,6.153]
[1721206181356,7.68944252,162.57,162.53,6.1527]
[1721206181668,6.1516,162.56,162.52,6.153]
[1721206182270,1.53794482,162.58,162.53,15.3813]
[1721206182568,1.5379425,162.57,162.53,15.3813]
[1721206183269,1.53794297,162.58,162.53,15.3813]
[1721206183475,16.2147,162.59,162.55,6.1516]
[1721206183775,16.2147,162.59,162.56,7.38157318]
[1721206183977,16.2147,162.59,162.57,6.151]
[1721206184177,16.2147,162.59,162.55,15.3796]
[1721206184178,1.53760999,162.6,162.55,15.3796]
[1721206184472,6.1508,162.58,162.55,15.3796]
[1721206184677,6.1508,162.58,162.55,1.23018519]
[1721206184853,6.1508,162.58,162.54,6.152]
[1721206185054,6.1508,162.58,162.53,6.1525]
[1721206185268,6.1508,162.58,162.54,6.1522]
[1721206185449,1.53783558,162.61,162.52,15.3821]
[1721206185663,6.1508,162.58,162.54,6.152]
[1721206185863,1.53775144,162.6,162.52,15.3821]
[1721206185864,6.1505,162.59,162.52,15.3821]
[1721206186170,6.1501,162.6,162.56,6.1515]
[1721206186381,6.1501,162.6,162.55,6.1518]
[1721206186885,1.53764781,162.59,162.51,15.383]
[1721206187471,6.1518,162.56,162.52,6.1529]
[1721206187675,6.1518,162.56,162.52,7.38332019]
[1721206187880,6.1518,162.56,162.52,6.1529]
[1721206188087,6.1519,162.55,162.51,21.5363]
[1721206188373,6.1516,162.56,162.51,21.5363]
[1721206189089,6.1516,162.56,162.52,6.153]
[1721206189577,1.53807956,162.55,162.52,6.153]
[1721206189975,1.5381894,162.55,162.52,6.153]
[1721206190370,1.70816329,162.6,162.53,6.1526]
[1721206190571,1.70816329,162.6,162.52,7.38343063]
[1721206190572,6.1514,162.57,162.52,7.38343063]
[1721206190755,7.68958126,162.56,162.52,1.23053063]
[1721206190958,6.1515,162.56,162.52,1.23053063]
[1721206191158,6.1515,162.56,162.52,7.38323063]
[1721206192259,20.7013,162.57,162.52,7.38323063]
[1721206192461,1.53807033,162.56,162.53,6.1526]
[1721206192780,1.53807169,162.6,162.54,1.23045735]
[1721206192993,6.25,162.64,162.6,6.1497]
[1721206193158,18.06019986,162.63,162.6,6.1497]
[1721206193359,32.61019986,162.63,162.6,6.1497]
[1721206193770,32.61019986,162.63,162.59,21.5259]
[1721206194086,24.20919986,162.63,162.59,21.5259]
[1721206195583,24.20919986,162.63,162.59,15.3756]
[1721206195977,6.1493,162.62,162.59,15.3756]
[1721206196284,16.5228,162.63,162.6,6.1499]
[1721206196486,18.0601678,162.63,162.6,6.1499]
[1721206196983,18.0601678,162.63,162.59,15.3756]
[1721206196984,18.0601678,162.63,162.59,21.5259]
[1721206197292,24.2091678,162.63,162.59,21.5259]
[1721206197861,16.5228,162.63,162.59,21.5259]
[1721206198473,24.20910793,162.63,162.59,21.5259]
[1721206198679,24.20910793,162.63,162.55,10.0]
[1721206198680,6.1494,162.62,162.58,6.1507]
[1721206199877,6.1498,162.61,162.57,7.38091723]
[1721206200167,6.1506,162.59,162.54,1.2300368]
[1721206200362,6.1507,162.59,162.55,7.3817683]
[1721206200587,6.1509,162.58,162.55,1.2301683]
[1721206200970,6.1504,162.59,162.55,7.3819683]
[1721206201368,6.1504,162.59,162.55,6.1518]
[1721206201670,6.1504,162.59,162.55,7.38196936]
[1721206201879,6.1504,162.59,162.55,6.1518]
[1721206202384,6.1504,162.59,162.53,15.3811]
[1721206202385,6.1512,162.57,162.53,21.5335]
[1721206202766,6.1508,162.58,162.54,6.1522]
[1721206202967,6.1505,162.59,162.55,6.1519]
[1721206203282,18.06060507,162.63,162.57,15.3776]
[1721206203595,18.06060507,162.63,162.57,21.5286]
[1721206203596,6.1496,162.62,162.57,21.5286]
[1721206203976,6.1496,162.61,162.57,21.5286]
[1721206204493,6.1501,162.6,162.57,15.3776]
[1721206204682,6.1497,162.61,162.57,15.3776]
[1721206205279,18.06034394,162.63,162.6,6.1499]
[1721206205483,18.06034394,162.63,162.59,6.1503]
[1721206205811,24.20944394,162.63,162.58,6.1507]
[1721206205977,18.06034394,162.63,162.59,7.38032325]
[1721206206177,18.06034394,162.63,162.59,15.3755]
[1721206206503,24.20934394,162.63,162.59,15.3755]
[1721206206876,16.5228,162.63,162.59,15.3755]
[1721206207081,16.5228,162.63,162.61,6.1494]
[1721206207475,18.0600459,162.63,162.59,15.3755]
[1721206207680,18.0600459,162.63,162.59,21.5256]
[1721206207896,16.5228,162.63,162.59,15.3755]
[1721206208075,16.5228,162.63,162.62,6.1493]
[1721206208285,16.5228,162.63,162.59,15.3755]
[1721206208600,16.5228,162.63,162.61,6.1496]
[1721206208904,16.5228,162.63,162.62,6.1493]
[1721206209202,17.38099615,162.67,162.6,1.22979562]
[1721206209400,15.8436,162.67,162.65,6.148]
[1721206209612,15.8436,162.67,162.57,20.0]
[1721206209613,17.38055039,162.71,162.64,1.22956031]
[1721206209902,1.53665173,162.7,162.66,6.1474]
[1721206210095,7.68295173,162.7,162.66,6.1474]
[1721206210297,1.53683191,162.7,162.67,6.1473]
[1721206210494,17.3803282,162.71,162.67,6.1473]
[1721206210690,1.5367282,162.7,162.67,6.1473]
[1721206210886,15.8436,162.71,162.67,6.1473]
[1721206212004,21.9895,162.71,162.67,6.1473]
[1721206212185,21.9895,162.71,162.66,6.1476]
[1721206212981,1.5367297,162.7,162.68,6.1467]
[1721206213212,15.8436,162.71,162.68,6.1467]
[1721206213213,15.8436,162.71,162.7,6.1462]
[1721206213718,15.8436,162.71,162.69,15.3659]
[1721206214008,15.8436,162.71,162.69,21.5125]
[1721206214605,16.5734,162.75,162.71,6.1455]
[1721206214795,1.53641718,162.74,162.71,6.1455]
[1721206215588,1.53641718,162.74,162.7,7.3752495]
[1721206215791,1.53641718,162.74,162.7,6.1461]
[1721206215981,1.53641718,162.74,162.7,7.37524459]
[1721206216308,18.10977477,162.75,162.71,6.1458]
[1721206216496,18.10977477,162.75,162.69,15.3659]
[1721206216696,0.34,162.74,162.66,21.5166]
[1721206217011,6.1463,162.7,162.66,15.369]
[1721206217313,6.1473,162.68,162.63,15.3719]
[1721206217616,22.1932,162.66,162.59,15.3755]
[1721206217781,22.1932,162.66,162.55,35.5254]
[1721206217782,16.0454,162.66,162.61,15.3737]
[1721206218117,16.0454,162.66,162.62,7.3787851]
[1721206218414,16.0454,162.66,162.63,6.1487]
[1721206219499,16.0454,162.66,162.62,21.9188851]
[1721206219728,16.07712918,162.65,162.6,6.1499]
[1721206219902,7.68542357,162.65,162.61,6.1496]
[1721206220421,1.53722357,162.65,162.61,6.1496]
[1721206221025,1.53722357,162.65,162.61,7.37937907]
[1721206221324,1.53722357,162.65,162.61,6.1496]
[1721206221525,1.53722428,162.64,162.6,15.3745]
[1721206221726,1.53722428,162.64,162.52,29.07]
[1721206221727,6.1511,162.58,162.52,29.07]
[1721206221907,0.17,162.63,162.54,21.5327]
[1721206221908,6.1504,162.59,162.54,21.5327]
[1721206222108,1.53775621,162.58,162.54,15.3807]
[1721206222341,6.1501,162.6,162.55,6.1519]
[1721206222615,1.53781185,162.59,162.56,6.1515]
[1721206222808,1.87780948,162.63,162.56,15.3785]
[1721206223002,6.1497,162.61,162.57,6.151]
[1721206223322,1.53767115,162.6,162.57,6.151]
[1721206223524,7.68797115,162.6,162.56,15.3785]
[1721206223721,6.1503,162.6,162.56,21.5299]
[1721206224317,6.1503,162.6,162.56,15.3785]
[1721206224610,16.0502,162.58,162.52,6.153]
[1721206224925,6.1523,162.54,162.5,21.5375]
[1721206225130,1.53833435,162.56,162.51,7.36597817]
[1721206225335,1.53833435,162.56,162.52,6.153]
[1721206225501,7.68993435,162.56,162.51,6.1534]
[1721206225820,7.68993435,162.56,162.51,7.383902]
[1721206226022,6.1519,162.55,162.5,21.5378]
[1721206226333,6.1527,162.53,162.47,15.3869]
[1721206226501,7.69065225,162.54,162.49,6.1541]
[1721206226801,1.53833565,162.53,162.49,6.1541]
[1721206227198,6.1518,162.56,162.49,16.61556879]
[1721206227504,1.53825216,162.55,162.51,6.1534]
[1721206227731,6.152,162.55,162.5,7.38430172]
[1721206227911,1.53825377,162.54,162.51,6.1532]
[1721206228112,6.3212,162.57,162.51,15.383]
[1721206228316,6.3212,162.57,162.53,6.1527]
[1721206228317,1.53806948,162.57,162.53,6.1527]
[1721206228528,1.53806948,162.57,162.51,21.5363]
[1721206228727,6.3216,162.56,162.51,21.5364]
[1721206228923,6.1512,162.57,162.52,6.153]
[1721206229246,6.1512,162.57,162.51,15.383]
[1721206229247,6.152,162.55,162.51,15.383]
[1721206229541,6.152,162.55,162.51,22.76689511]
[1721206229703,6.1516,162.56,162.52,6.153]
[1721206229899,7.69005047,162.55,162.51,21.5363]
[1721206230127,6.1516,162.56,162.52,6.1529]
[1721206230326,1.53814826,162.55,162.52,6.1529]
[1721206230826,1.53814602,162.57,162.52,1.23051681]
[1721206231032,1.53795583,162.57,162.52,1.23051681]
[1721206231228,1.53795583,162.57,162.53,6.1526]
[1721206231422,7.68915583,162.57,162.53,6.1526]
[1721206231604,1.53795583,162.57,162.47,29.07]
[1721206231800,6.1515,162.56,162.48,46.23048889]
[1721206232008,7.68925583,162.57,162.5,15.3838]
[1721206232212,7.68925583,162.57,162.51,1.23045117]
[1721206232405,6.1516,162.56,162.52,7.38338834]
[1721206232820,6.1516,162.56,162.52,1.23048834]
[1721206233036,1.53811284,162.55,162.51,6.1533]
[1721206233536,1.53802816,162.57,162.54,6.1522]
[1721206233707,17.58815255,162.58,162.54,6.1522]
[1721206233914,17.58815255,162.58,162.55,6.1518]
[1721206234304,16.0502,162.58,162.55,6.1518]
[1721206234519,16.0502,162.58,162.55,1.23032888]
[1721206235009,16.0502,162.58,162.56,6.1514]
[1721206235227,1.53779233,162.6,162.57,6.1511]
[1721206235429,1.53763243,162.61,162.57,6.1511]
[1721206235735,1.53763795,162.6,162.57,6.1511]
[1721206236049,1.53763795,162.6,162.55,7.38222888]
[1721206236210,1.53768971,162.61,162.55,7.38222888]
[1721206236720,6.1501,162.6,162.55,7.38192888]